Cogmind - Beta 15 @@@ ROGUE MODE // 2025.08.13 @ 15:24:35 Player: TapeIsSticky Result: Destroyed by G-47 Trooper with Particle Gun Performance ------------- Evolutions (3) 1500 Regions Visited (9) 1800 Robots Destroyed (178) 890 Value Destroyed (7650) 7650 Prototype IDs (39) 780 Alien Tech Used (0) 0 Bonus (4608) 4608 TOTAL SCORE: 17228 Bonus ------- Triggered High Security 500 High Alert Combat Kills 2746 Follower Combat Kills 767 Entered Garrisons 200 Aligned with FarCom 300 Acquired ECA 300 Friendly Fire -205 Cogmind --------- Core Integrity 0/700 Matter 295/300 Energy 100/100 System Corruption 16% Temperature Hot (295) Movement Core (50) Location -7/Lower Caves Parts ------- > --- POWER (1) -------- (None) > --- PROPULSION (4) --- (None) > --- UTILITY (5) ------ (None) > --- WEAPON (3) ------- (None) > --- INVENTORY (5) ---- Encrypted Comm Array AS-neutralizer No. 17b Improved Grenade Launcher Peak State ------------ > --- POWER ------------ Reinforced Fission Core > --- PROPULSION ------- Light Treads Light Treads > --- UTILITY ---------- Huge Storage Unit Advanced Targeting Computer Experimental Targeting Computer Experimental Core Analyzer Advanced Weapon Cycler > --- WEAPON ----------- Minigun 8R-AWN's Boregun 8R-AWN's Boregun > --- INVENTORY -------- Improved Deuterium Engine Reinforced Deuterium Engine Enhanced Nuclear Core Cold Fusion Reactor VTOL Module Experimental Heat Sink High-capacity Matter Pod Experimental Sensor Array Hardlight Generator AS-neutralizer No. 17b Minigun Minigun High-powered Shotgun High-powered Shotgun Flak Cannon Improved Grenade Launcher Heavy Mace [Rating: 65] Favorites ----------- Power Ion Engine Engine Ion Engine Power Core Light Neutrino Core Reactor Cold Fusion Reactor Propulsion Light Treads Treads Light Treads Leg Advanced Myomer Leg Wheel Compact Wheel Flight Unit VTOL Module Utility Huge Storage Unit Device Seismic Detector Storage Huge Storage Unit Processor Advanced Targeting Computer Protection Hardened Light Armor Plating Weapon Assault Rifle Energy Gun Medium Laser Energy Cannon Plasma Cannon Ballistic Gun Assault Rifle Ballistic Cannon Flak Cannon Launcher Grenade Launcher Special Weapon Remote Datajack Impact Weapon Heavy Mace Slashing Weapon Makeshift Axe Build | -11 -10 -10 -10 -9 -8 -8 -7 -7 -7 ------- Run | Yrd Mat Min Exi Min Mat Gar Fac Low Low Slots Evolved 6 | . . . . . 4 . 2 . . Power . | . . . . . . . . . . Propulsion 2 | . . . . . 1 . 1 . . Utility 3 | . . . . . 2 . 1 . . Weapon 1 | . . . . . 1 . . . . Parts Attached 126 | 7 8 . 29 3 22 15 33 7 2 Power 10 | 1 . . 6 . . . 2 1 . Engine 6 | 1 . . 4 . . . . 1 . Core 3 | . . . 1 . . . 2 . . Reactor 1 | . . . 1 . . . . . . Propulsion 36 | 2 2 . 9 1 6 3 11 1 1 Treads 30 | 2 2 . 5 1 6 3 10 . 1 Leg 3 | . . . 3 . . . . . . Wheel 2 | . . . 1 . . . . 1 . Hover . | . . . . . . . . . . Flight 1 | . . . . . . . 1 . . Utility 38 | 2 2 . 8 1 8 4 11 2 . Device 14 | 1 . . 4 1 1 1 5 1 . Storage 3 | 1 1 . . . . 1 . . . Processor 8 | . . . 1 . 3 . 3 1 . Hackware . | . . . . . . . . . . Protection 13 | . 1 . 3 . 4 2 3 . . Artifact . | . . . . . . . . . . Weapon 42 | 2 4 . 6 1 8 8 9 3 1 Energy Gun 2 | 1 1 . . . . . . . . Energy Cannon 2 | . . . . . 1 . . 1 . Ballistic Gun 30 | 1 3 . 4 1 6 8 6 1 . Ballistic Cannon 1 | . . . . . . . 1 . . Launcher 3 | . . . 1 . 1 . 1 . . Special Weapon 1 | . . . . . . . . . 1 Impact Weapon 1 | . . . . . . . 1 . . Slashing Weapon 2 | . . . 1 . . . . 1 . Piercing Weapon . | . . . . . . . . . . Special Melee Weapon . | . . . . . . . . . . Unidentified Prototypes 16 | . . . 9 1 3 . 3 . . Parts Lost 39 | . 1 . . . 5 2 30 . 1 Power 5 | . . . . . . 1 4 . . Propulsion 8 | . 1 . . . 1 . 5 . 1 Utility 11 | . . . . . 1 . 10 . . Weapon 15 | . . . . . 3 1 11 . . Highest Loss Streak 16 | . 1 . . . 1 1 16 . 1 To Critical Strikes 1 | . . . . . . . 1 . . Average Backups 19 | 2 15 21 14 22 23 23 23 4 3 Power 2 | . 1 1 1 4 3 2 2 . . Propulsion 4 | . 6 8 4 5 4 5 3 . . Utility 6 | . 3 6 4 9 8 7 7 2 1 Weapon 5 | . 4 6 3 4 6 8 9 1 1 Tool/Special . | . . . . . . . . . . Unused Backups 14 | . 1 . 7 2 2 2 . . . Power 5 | . 1 . 3 . 1 . . . . Propulsion 6 | . . . 3 2 1 . . . . Utility 2 | . . . 1 . . 1 . . . Weapon 1 | . . . . . . 1 . . . Tool/Special . | . . . . . . . . . . Average Slot Usage (%) 93 | . 99 100 88 100 97 99 97 18 56 Engine 8 | . 14 14 13 14 9 2 . . 7 Core 2 | . . . . . . 6 6 . . Treads 25 | . 27 28 24 28 26 27 28 . 5 Wheel 1 | . . . 3 . . . . 1 7 Device 7 | . 14 14 5 . 4 7 12 5 4 Storage 9 | . 14 14 7 14 9 9 6 . . Processor 4 | . . . . . 7 9 9 1 7 Protection 9 | . . . 14 13 12 10 5 . . Ballistic Gun 20 | . 19 28 13 28 26 26 20 . 7 Peak Build Rating 65 | 7 9 10 41 31 51 41 65 31 41 Average Rating 27 | 5 8 9 14 25 37 39 49 13 37 On Entrance 18 | . 7 9 8 24 26 37 41 2 29 Naked Turns 25 | . . . . . . . 14 10 1 Heaviest Build 122 | 14 90 89 95 94 112 114 122 31 29 Greatest Support 96 | 40 40 40 60 43 68 63 96 28 28 Greatest Overweight (x) 5 | . 2 2 5 2 1 1 1 1 1 Average Overweight (x) 1 | . 1 2 1 2 1 1 . . . Largest Inventory Capacity 25 | 8 25 25 25 25 25 25 25 5 5 Average Capacity 21 | 7 22 25 15 25 25 25 24 5 5 Most Carried 25 | 4 21 24 25 25 25 25 25 5 4 Average Carried 20 | 2 15 21 14 24 24 24 24 4 3 Final Capacity 25 | 8 25 25 25 25 25 25 5 5 5 Final Carried 25 | 4 21 25 25 25 23 25 5 4 3 Class Distribution -------------------- 56% | Mutant 15% | Scavenger-Tank 12% | Scavenger-Gunner 11% | Gunner Dominant Class ---------------- Mutant | -10/Materials Mutant | -10/Mines Mutant | -10/Exiles Mutant | -9/Mines Scavenger-Gunner | -8/Materials Scavenger-Tank | -8/Garrison Gunner | -7/Factory Mutant | -7/Lower Caves Derelict-Mutant | -7/Lower Caves Resources | -11 -10 -10 -10 -9 -8 -8 -7 -7 -7 ----------- Run | Yrd Mat Min Exi Min Mat Gar Fac Low Low Matter Collected 6576 | 284 441 12 883 435 1446 501 2338 132 104 Remotely . | . . . . . . . . . . Salvage Created 7142 | 113 414 48 528 59 1861 720 3222 27 150 Parts 413 | 9 27 6 66 5 98 52 142 2 6 Haulers Intercepted 5 | . 1 . . . 4 . . . . Recyclers Shooed 6 | . 1 . . . 3 . 2 . . Parts Field Recycled . | . . . . . . . . . . Retrieved Matter . | . . . . . . . . . . Parts Self-Destructed 10 | . . . . . . . . 10 . Prevented . | . . . . . . . . . . Kills | -11 -10 -10 -10 -9 -8 -8 -7 -7 -7 ------- Run | Yrd Mat Min Exi Min Mat Gar Fac Low Low Combat Hostiles Destroyed 139 | . 10 3 5 . 31 19 69 2 . Guns 105 | . 10 3 1 . 31 17 43 . . Cannons 1 | . . . . . . . . 1 . AOE 32 | . . . 4 . . 2 25 1 . Classes Destroyed 22 | 2 5 . 3 . 6 3 2 . 1 Worker 2 | . . . . . 1 . 1 . . Builder 3 | . 1 . . 1 . . 1 . . Tunneler 4 | 3 . . . 1 . . . . . Hauler 5 | . 1 . . . 4 . . . . Recycler 3 | 1 . . . 1 . . 1 . . Mechanic 4 | . . . . . . . 4 . . Operator 2 | . . . . . 2 . . . . Turret 1 | . . . 1 . . . . . . Watcher 7 | . 2 . . . 5 . . . . Swarmer 33 | . 6 3 . . 3 4 15 2 . Cutter 2 | . . . . . . 2 . . . Grunt 56 | . 4 . . . 17 6 29 . . Brawler 11 | . . . . . 1 1 9 . . Duelist 6 | . . . . . 1 1 4 . . Protector 4 | . . . . . . . 4 . . Sentry 10 | . . . . . 6 1 3 . . Specialist 3 | . . . . . . 3 . . . Hunter 5 | . . . . . 3 1 1 . . Programmer 5 | . . . . . . 1 4 . . Zionite 8 | . . . 8 . . . . . . Samaritan 3 | . . . . . . . . . 3 Assembled 4 | . . . 4 . . . . . . Thug 1 | . . . . . . 1 . . . Best Kill Streak 15 | 4 4 3 4 1 5 7 15 2 . Combat Bots Only 13 | . 4 3 4 . 5 7 13 2 . Max Kills in Single Turn 5 | 1 1 2 1 1 2 2 5 1 1 Gunslinging 1 | . . 1 . . . 1 . . . Exploded 4 | . . . 1 . . 2 4 1 . Melee . | . . . . . . . . . . Uniques/NPCs Destroyed 4 | . . . 4 . . . . . . EX-BIN (-10/Exiles) EX-DEC (-10/Exiles) EX-HEX (-10/Exiles) 8R-AWN (-10/Exiles) Combat | -11 -10 -10 -10 -9 -8 -8 -7 -7 -7 -------- Run | Yrd Mat Min Exi Min Mat Gar Fac Low Low Hostile Shots Fired 789 | . 79 14 8 . 162 44 446 2 34 Missed 241 | . 22 3 1 . 52 13 137 1 12 Hits 548 | . 57 11 7 . 110 31 309 1 22 Melee 27 | . . . . . 5 1 21 . . Projectile 521 | . 57 11 7 . 105 30 288 1 22 AOE 2 | . . . . . . 2 . . . Critical Strikes 27 | . 1 . 4 . 7 2 12 . 1 Damage Taken 8202 | . 616 85 220 . 1646 622 4751 12 250 Core 967 | . 74 13 32 . 61 73 599 . 115 Absorbed by Shields 79 | . . . . . . 79 . . . Core Remaining (%) 75 | 100 . . . 52 . 75 . . . Volleys Fired 511 | 14 49 3 111 2 133 53 133 7 6 Largest 3 | 2 2 2 2 2 3 3 3 1 1 Hottest 92 | 70 70 40 60 40 79 78 92 80 80 Shots Fired 1090 | 28 97 6 186 4 363 100 291 7 8 Gun 1021 | 28 97 6 165 4 363 95 262 . 1 Cannon 18 | . . . . . . . 8 3 7 Launcher 51 | . . . 21 . . 5 21 4 . Special . | . . . . . . . . . . Kinetic 972 | 14 54 6 165 4 363 95 270 . 1 Thermal 60 | 14 36 . . . . . . 3 7 Explosive 49 | . . . 21 . . 3 21 4 . Electromagnetic 9 | . 7 . . . . 2 . . . Robot Hit Streak 19 | 6 8 3 6 2 18 10 19 2 5 Robot Miss Streak 5 | 3 4 2 4 1 5 3 3 1 3 Penetration Max 2 | . . . . . 1 . 2 . . Secondary Targets 17 | . 3 1 1 . 1 3 8 . . Max Gunslinging Chain 1 | . 1 1 1 . 1 1 1 . . Shots Hit Robots 700 | 16 60 3 103 2 238 53 211 4 10 Core Hits 395 | 6 22 3 60 1 94 30 174 2 3 Critical Kills 21 | . 1 1 . . 1 . 18 . . Critical Parts Destroyed 41 | . 1 . 1 1 4 . 34 . . Critical Strikes 71 | 1 4 1 4 1 5 1 54 . . Burn 3 | 1 2 . . . . . . . . Destroy 68 | . 2 1 4 1 5 1 54 . . Melee Attacks 41 | . . . 8 . . . 25 2 6 Impact 25 | . . . . . . . 25 . . Slashing 16 | . . . 8 . . . . 2 6 Piercing . | . . . . . . . . . . Sneak Attacks 6 | . . . . . . . . . 6 Combat Hostiles . | . . . . . . . . . . Follow-up Attacks . | . . . . . . . . . . Damage Inflicted 17287 | 168 792 69 2201 82 3506 1288 8435 213 533 Guns 10610 | 168 745 45 1093 19 3481 772 4287 . . Cannons 328 | . . . . . . . 153 51 124 Explosions 4986 | . . . 538 . . 516 3770 162 . Melee 1172 | . . . 566 . . . 197 . 409 Ramming 191 | . 47 24 4 63 25 . 28 . . Kinetic 10300 | 68 382 45 1093 19 3481 772 4440 . . Thermal 947 | 100 289 . . . . . 383 51 124 Explosive 4407 | . . . 538 . . 320 3387 162 . Electromagnetic 270 | . 74 . . . . 196 . . . Impact 197 | . . . . . . . 197 . . Slashing 975 | . . . 566 . . . . . 409 Piercing . | . . . . . . . . . . Highest Corruption 16 | . 1 1 2 . . . 16 16 16 Average Corruption 2 | . 1 1 1 . . . 4 16 16 Corruption Purged 2 | . . . 2 . . . . . . Corruption Blocked . | . . . . . . . . . . Effects 124 | . 18 3 32 . . . 37 26 8 Message Errors 31 | . 3 1 11 . . . 9 4 3 Matter Fused 22 | . 3 1 7 . . . 5 6 . Heat Flow Errors 16 | . 2 . 3 . . . 6 5 . Energy Discharges 12 | . . 1 3 . . . 2 6 . Parts Rejected 1 | . 1 . . . . . . . . Parts Fused 2 | . . . 1 . . . . . 1 Data Loss (minor) 18 | . 5 . 6 . . . 4 2 1 Data Loss (major) 7 | . 2 . . . . . 3 2 . Misfires 6 | . 2 . . . . . 2 . 2 Alerts 3 | . . . 1 . . . 2 . . Misdirections 2 | . . . . . . . . 1 1 Weapon Failures 4 | . . . . . . . 4 . . Overload Shots . | . . . . . . . . . . Overflow Damage 432 | . . . 7 . . 1 244 9 171 Projectiles 20 | . . . . . . . . 9 11 Explosions 227 | . . . . . . 1 226 . . Melee 185 | . . . 7 . . . 18 . 160 Knockbacks 7 | . . . . 1 . . 6 . . Impact 3 | . . . . 1 . . 2 . . Kinetic 3 | . . . . . . . 3 . . Secondary 1 | . . . . . . . 1 . . Self-Inflicted Damage 411 | . . . 2 . . 177 232 . . Shots 9 | . . . . . . 4 5 . . Rammed 26 | . 6 3 1 5 7 . 4 . . Targets Rammed 28 | . 6 3 1 7 7 . 4 . . Kicked . | . . . . . . . . . . Crushed 2 | . . . . 2 . . . . . Highest Temperature 412 | 200 386 . 252 20 370 72 412 250 308 Average Temperature 87 | 99 129 . 71 10 83 22 146 91 173 Received Heat Transfer 2248 | . 246 . . . 495 130 1293 . 84 Effects 11 | . 5 . . . 2 . 4 . . Shutdowns 3 | . 1 . . . 1 . 1 . . Energy Bleed 4 | . 2 . . . 1 . 1 . . Matter Decay 1 | . . . . . . . 1 . . Short Circuit 2 | . 2 . . . . . . . . Damage (major) 1 | . . . . . . . 1 . . Siege Activations . | . . . . . . . . . . Martial Activations . | . . . . . . . . . . Shielding Activations . | . . . . . . . . . . Robots Disrupted . | . . . . . . . . . . Combat Hostiles . | . . . . . . . . . . Robots Corrupted 1 | . . . . . . . 1 . . Combat Hostiles 1 | . . . . . . . 1 . . Parts Fried 2 | . . . . . . . 2 . . Impact Corruptions 3 | . . . . . . . 3 . . Robots Melted . | . . . . . . . . . . Combat Hostiles . | . . . . . . . . . . Parts Melted 6 | . 6 . . . . . . . . Heat Transferred 2019 | 370 999 . . . . . 300 100 250 Parts Sabotaged . | . . . . . . . . . . Parts Stolen . | . . . . . . . . . . Parts Stripped . | . . . . . . . . . . Power Chain Reactions 1 | . . . . . . 1 . . . Alert | -11 -10 -10 -10 -9 -8 -8 -7 -7 -7 ------- Run | Yrd Mat Min Exi Min Mat Gar Fac Low Low Maximum Alert Level 5 | . . . . . 1 5 5 . . Low Security (%) 51 | 100 100 100 . 100 74 . . . . Level 1 8 | . . . . . 25 12 . . . Level 2 4 | . . . . . . 28 . . . Level 3 16 | . . . . . . 18 53 . . Level 4 14 | . . . . . . 31 34 . . Level 5 1 | . . . . . . 9 . . . High Security 2 | . . . . . . . 11 . . Max Security . | . . . . . . . . . . Peak Influence 2297 | 10 96 70 . 81 370 1909 2297 . . Initial 1001 | . . 9 . . . 239 1001 . . Average 487 | 1 14 8 . 4 144 920 1166 . . Influence Increases 5798 | 20 288 70 . 96 1087 1770 2326 141 . Destroy 0b10 Robot/C 3180 | . 200 60 . 60 640 620 1540 60 . Destroy 0b10 Robot/NC 175 | 20 20 . . 15 60 . 60 . . Destroy Leader 546 | . 26 10 . 10 188 20 282 10 . Allied During Kill 193 | . . . . 11 3 126 42 11 . Successful Hack 20 | . 12 . . . 8 . . . . Disable Machine 300 | . . . . . 150 15 135 . . Anti-Garrison Action 900 | . . . . . . 900 . . . Destroy Structure 244 | . . . . . 8 89 147 . . Lose Combat Pursuer 240 | . 30 . . . 30 . 120 60 . Influence Decreases 4776 | 20 264 94 . 96 719 229 1938 1089 327 Entered New Map 2160 | . . 15 . . . 129 908 851 257 Time Decay 2086 | 20 254 79 . 96 629 . 710 238 60 Lost Part 390 | . 10 . . . 50 20 300 . 10 Lost Ally 140 | . . . . . 40 80 20 . . Squads Dispatched 40 | . . . . . 6 . 34 . . Investigation 3 | . . . . . 3 . . . . Extermination 4 | . . . . . . . 4 . . Reinforcement 6 | . . . . . 3 . 3 . . Assault 21 | . . . . . . . 21 . . Garrison 6 | . . . . . . . 6 . . Intercept . | . . . . . . . . . . Searches Triggered . | . . . . . . . . . . Construction Impeded 1 | . . . . . . . 1 . . Haulers Reinforced . | . . . . . . . . . . Active Scanning Responses . | . . . . . . . . . . Cargo Convoy Interrupts . | . . . . . . . . . . Stealth | -11 -10 -10 -10 -9 -8 -8 -7 -7 -7 --------- Run | Yrd Mat Min Exi Min Mat Gar Fac Low Low Distress Signals 3 | . . . . . 2 . 1 . . Communications Jammed . | . . . . . . . . . . Distress Signals . | . . . . . . . . . . Times Spotted 245 | . 21 3 23 1 52 29 106 7 3 Peak Tracking Total 21 | . 3 3 9 . 4 4 21 3 3 Tactical Retreats 17 | . 2 . 6 . 2 . 5 2 . Traps | -11 -10 -10 -10 -9 -8 -8 -7 -7 -7 ------- Run | Yrd Mat Min Exi Min Mat Gar Fac Low Low Traps Triggered 12 | . 1 . . . 2 8 1 . . Indirectly . | . . . . . . . . . . Trap Hack Attempts . | . . . . . . . . . . Triggered . | . . . . . . . . . . Disarmed . | . . . . . . . . . . Reprogrammed . | . . . . . . . . . . Reused . | . . . . . . . . . . Traps Extracted . | . . . . . . . . . . Installed . | . . . . . . . . . . Triggered . | . . . . . . . . . . Machines | -11 -10 -10 -10 -9 -8 -8 -7 -7 -7 ---------- Run | Yrd Mat Min Exi Min Mat Gar Fac Low Low Machines Disabled 39 | . . . 10 . 10 10 9 . . Max in Single Turn 2 | . . . 1 . 1 2 2 . . Garrison Relay 7 | . . . . . . 7 . . . Phase Generator 1 | . . . . . . 1 . . . Machines Repaired . | . . . . . . . . . . Machines Dismantled . | . . . . . . . . . . Machines Sabotaged . | . . . . . . . . . . Overloaded Fab Kills . | . . . . . . . . . . Hacking | -11 -10 -10 -10 -9 -8 -8 -7 -7 -7 --------- Run | Yrd Mat Min Exi Min Mat Gar Fac Low Low Machines Accessed 29 | . 7 1 1 1 8 2 7 2 . Terminals 20 | . 7 . . 1 6 2 4 . . Fabricators 1 | . . . . . . . 1 . . Repair Stations 2 | . . . . . 1 . 1 . . Recycling Units . | . . . . . . . . . . Scanalyzers . | . . . . . . . . . . Garrison Access 2 | . . . . . 1 . 1 . . Total Hacks 60 | . 17 1 1 1 16 4 12 8 . Successful 29 | . 9 1 1 1 6 2 1 8 . Failed 31 | . 8 . . . 10 2 11 . . Catastrophic 6 | . . . . . 2 2 2 . . Database Lockouts . | . . . . . . . . . . Manual 36 | . 16 . 1 . 13 . 6 . . Terminals 43 | . 17 . . 1 13 4 8 . . Fabricators 1 | . . . . . . . 1 . . Repair Stations 3 | . . . . . 2 . 1 . . Recycling Units . | . . . . . . . . . . Scanalyzers . | . . . . . . . . . . Garrison Access 3 | . . . . . 1 . 2 . . Terminal Hacks 15 | . 2 1 1 1 . 2 . 8 . Record 8 | . . . . 1 . . . 7 . Robot Analysis 1 | . 1 . . . . . . . . Open Door 3 | . . 1 . . . 1 . 1 . Emergency Access Points 1 | . . . . . . 1 . . . Locate Traps 1 | . 1 . . . . . . . . Proto ID Catalog 1 | . . . 1 . . . . . . Fabricator Hacks 1 | . . . . . . . 1 . . Network Status 1 | . . . . . . . 1 . . Repair Station Hacks 1 | . . . . . 1 . . . . Scan Component 1 | . . . . . 1 . . . . Recycling Unit Hacks . | . . . . . . . . . . Scanalyzer . | . . . . . . . . . . Garrison Access Hacks 1 | . . . . . 1 . . . . Unlock Access 1 | . . . . . 1 . . . . Unauthorized Hacks 11 | . 7 . . . 4 . . . . Terminals 11 | . 7 . . . 4 . . . . Botnet 1 | . 1 . . . . . . . . Skim 10 | . 6 . . . 4 . . . . Fabricators . | . . . . . . . . . . Repair Stations . | . . . . . . . . . . Recycling Units . | . . . . . . . . . . Scanalyzers . | . . . . . . . . . . Garrison Access . | . . . . . . . . . . Data Cores Recovered . | . . . . . . . . . . Used . | . . . . . . . . . . Hacking Detections 19 | . 6 . . . 7 . 6 . . Full Trace Events 1 | . . . . . 1 . . . . Feedback Events . | . . . . . . . . . . Feedback Blocked . | . . . . . . . . . . Robot Schematics Acquired . | . . . . . . . . . . Robots Built . | . . . . . . . . . . Authchips . | . . . . . . . . . . Time . | . . . . . . . . . . Total Robot Build Rating . | . . . . . . . . . . Part Schematics Acquired . | . . . . . . . . . . Parts Built . | . . . . . . . . . . Authchips . | . . . . . . . . . . Time . | . . . . . . . . . . Total Part Build Rating . | . . . . . . . . . . Parts Repaired . | . . . . . . . . . . Time . | . . . . . . . . . . Parts Recycled . | . . . . . . . . . . Recycled Matter . | . . . . . . . . . . Retrieved Matter . | . . . . . . . . . . Retrieved Components . | . . . . . . . . . . Parts Scanalyzed . | . . . . . . . . . . Part Schematics Acquired . | . . . . . . . . . . Parts Damaged . | . . . . . . . . . . Bothacking | -11 -10 -10 -10 -9 -8 -8 -7 -7 -7 ------------ Run | Yrd Mat Min Exi Min Mat Gar Fac Low Low Used RIF Installer . | . . . . . . . . . . Robots Hacked . | . . . . . . . . . . Non-combat . | . . . . . . . . . . Combat . | . . . . . . . . . . Robot Hacks Applied . | . . . . . . . . . . Relay Couplers Released 31 | . . . . . . 31 . . . Machine Destruction 31 | . . . . . . 31 . . . Fabnet Peak Effective % . | . . . . . . . . . . Robots Rewired 6 | . . . . . . 6 . . . Allies Hacked 1 | . . . . . . 1 . . . Hacks Repelled . | . . . . . . . . . . Allies | -11 -10 -10 -10 -9 -8 -8 -7 -7 -7 -------- Run | Yrd Mat Min Exi Min Mat Gar Fac Low Low Total Allies 12 | . . . . 3 . 7 . 2 . Largest Group 6 | . . . . 3 3 6 1 2 . Highest-Rated Group 126 | . . . . 40 40 126 21 62 . Highest-Rated Ally 31 | . . . . 16 16 31 21 31 . Initial Warlord ECA Mod 33 | . . . . . . . 11 11 11 Total Orders 6 | . . . . 2 . 4 . . . STAY 3 | . . . . 1 . 2 . . . FOLLOW 3 | . . . . 1 . 2 . . . Ally Attacks 136 | . . . 22 14 9 41 36 14 . Total Damage 2948 | . . . 127 105 91 837 1686 102 . Kills 30 | . . . . 3 1 12 13 1 . Allies Corrupted . | . . . . . . . . . . Allies Melted 1 | . . . . . . 1 . . . Turrets Deployed 1 | . . . . . . . 1 . . Intel | -11 -10 -10 -10 -9 -8 -8 -7 -7 -7 ------- Run | Yrd Mat Min Exi Min Mat Gar Fac Low Low Active Infowar (turns) 6015 | 51 1952 687 969 2 . . 2260 . 94 Sensors 2356 | . . . . 2 . . 2260 . 94 Seismic 3659 | 51 1952 687 969 . . . . . . Robot Analysis Total 1 | . 1 . . . . . . . . Derelict Logs Recovered 2 | . . . . 1 . . . 1 . Drone Launches 8 | . . . 8 . . . . . . Drone Recoveries 6 | . . . 6 . . . . . . Exploration | -11 -10 -10 -10 -9 -8 -8 -7 -7 -7 ------------- Run | Yrd Mat Min Exi Min Mat Gar Fac Low Low Turns Passed 20472 | 154 1954 687 5429 2047 3477 2483 3593 511 137 Spaces Moved 7885 | 67 608 209 2491 629 1053 903 1242 591 92 Core 541 | 5 . . . . . . 26 508 2 Treads 6260 | 62 608 209 1580 629 1053 903 1216 . . Legs 9 | . . . 9 . . . . . . Wheels 1075 | . . . 902 . . . . 83 90 Hover . | . . . . . . . . . . Flight . | . . . . . . . . . . Fastest Speed 50 | 50 160 320 100 320 235 240 50 50 50 Average Speed 221 | 151 284 320 195 320 237 240 238 58 110 Slowest Speed 320 | 160 320 320 320 320 240 240 245 115 115 Overloaded Moves . | . . . . . . . . . . Propulsion Burnouts . | . . . . . . . . . . Robots Hopped 1 | . . . . . . . 1 . . Potential Cave-ins . | . . . . . . . . . . Cave-ins Triggered . | . . . . . . . . . . Exploration Rate (%) 62 | 5 96 48 91 100 75 82 38 71 20 Regions Visited 9 Branch Regions 5 Pre-discovered Areas 5 | . 2 . . . . . . 3 . Known Exits Taken 1 | . . . . . 1 . . . . Unknown Exits Taken 7 | 1 1 1 1 1 . . 1 1 . Scrap Searched 5 | . . . . 2 . . . 2 1 Spaces Dug 24 | . . . . . . . 22 2 . Terrain Destroyed 329 | . . . 35 . 5 87 151 51 . Melee 15 | . . . . . . . 13 2 . Projectile 14 | . . . 4 . 4 2 4 . . AOE 299 | . . . 31 . . 85 134 49 . Terrain Rammed . | . . . . . . . . . . Walls Destroyed . | . . . . . . . . . . Machines Disabled . | . . . . . . . . . . Actions | -11 -10 -10 -10 -9 -8 -8 -7 -7 -7 --------- Run | Yrd Mat Min Exi Min Mat Gar Fac Low Low Total 9937 | 91 728 218 2895 650 1738 1134 1629 743 111 Wait 992 | . 33 . 135 . 481 74 137 130 2 Move 7875 | 66 607 208 2490 628 1053 902 1239 590 92 Hop 1 | . . . . . . . 1 . . Pick Up 106 | 4 18 2 45 3 11 8 14 1 . Fast Attach 49 | 7 2 . 13 1 10 2 7 5 2 Attach 35 | . 2 . 7 . 7 2 12 4 1 Detach 7 | . . 2 1 . 2 . . 2 . Swap 110 | . 7 . 22 3 16 21 39 1 1 Drop 122 | . 4 . 62 6 18 12 18 1 1 Fire 511 | 14 49 3 111 2 133 53 133 7 6 Melee 41 | . . . 8 . . . 25 2 6 Ram 2 | . . . 1 . . . 1 . . Kick . | . . . . . . . . . . Crush 26 | . 6 3 . 7 7 . 3 . . Escape Stasis 16 | . . . . . . 16 . . . Rewire 44 | . . . . . . 44 . . . Trap . | . . . . . . . . . . Miscellaneous . | . . . . . . . . . . Route ------- -11/Scrapyard -10/Materials (discovered 5 exits: *Mat x3 / *Min / [*Sub]) -10/Mines (discovered 4 exits: *Mat x2 / *Exi / [*Sub]) -10/Exiles -9/Mines (discovered 2 exits: *Mat x2) -8/Materials (discovered 4 exits: *Fac / [*Sto x2] / Gar) -8/Garrison (discovered 3 exits: *Fac x3) -7/Factory -7/Lower Caves -7/Lower Caves History --------- Turn | Location | Event 5 | -11/Scrapyard | Discovered new exit (range 13) 155 | -11/Scrapyard | Entered Materials 316 | -10/Materials | Build established: Mutant 496 | -10/Materials | Discovered new exit (range 4) 688 | -10/Materials | Discovered new exit (range 12) 828 | -10/Materials | Discovered new exit (range 7) 1404 | -10/Materials | Discovered new exit (range 4) 1630 | -10/Materials | Learned location of Subcaves (-10) 1668 | -10/Materials | Discovered new exit (range 12) 1764 | -10/Materials | Learned 2 Mines zone layouts 1792 | -10/Materials | Learned location of Mines (-9) 1838 | -10/Materials | Learned location of 2 exits from Mines 1876 | -10/Materials | Learned Storage stockpile data 2109 | -10/Materials | Entered Mines 2110 | -10/Mines | Identified exit to Materials 2418 | -10/Mines | Found the Drone Emporium 2433 | -10/Mines | Found Prototype Device 2475 | -10/Mines | Discovered new exit (range 13) 2782 | -10/Mines | Deemed a non-threat by the Exiles lab entrance 2782 | -10/Mines | Discovered new exit (range 5) 2796 | -10/Mines | Entered Exiles 2880 | -10/Exiles | Met 8R-AWN 2934 | -10/Exiles | Met EX-HEX 3056 | -10/Exiles | Met EX-BIN 3104 | -10/Exiles | Aligned with FarCom system 3107 | -10/Exiles | Given EX-Vault access code 3184 | -10/Exiles | Opened EX-Vault 3270 | -10/Exiles | Warned to stay clear of 0b10 Research branches 3376 | -10/Exiles | Met EX-DEC 3949 | -10/Exiles | Identified Thief Drone Bay 4750 | -10/Exiles | Attacked by the Exiles 4873 | -10/Exiles | Found Prototype Ballistic Gun 4873 | -10/Exiles | Identified 8R-AWN's Boregun 4877 | -10/Exiles | Found 8R-AWN's Boregun 4898 | -10/Exiles | Discovered new exit (range 11) 4948 | -10/Exiles | Found Prototype Device 4948 | -10/Exiles | Identified AS-neutralizer No. 17b 6048 | -10/Exiles | Destroyed EX-BIN 6115 | -10/Exiles | Destroyed EX-DEC 6181 | -10/Exiles | Destroyed EX-HEX 6293 | -10/Exiles | Destroyed 8R-AWN 6787 | -10/Exiles | Found Prototype Device 6787 | -10/Exiles | Identified System Purifier 6892 | -10/Exiles | Found Prototype Processor 6918 | -10/Exiles | Found Prototype Processor 6928 | -10/Exiles | Found Deploy-a-Sentry 7095 | -10/Exiles | Found Prototype Protection 8225 | -10/Exiles | Left Exiles lab with Deploy-a-Sentry 8225 | -10/Exiles | Entered Mines 8232 | -9/Mines | Assisted by bots powering up and referring to "LRC-V3" 8283 | -9/Mines | Found a damaged Exp. Sensor Array with a note attached 8289 | -9/Mines | Found Prototype Device 8289 | -9/Mines | Identified Exp. Sensor Array 8442 | -9/Mines | Found a Scrap Suit stashed away for nefarious purposes 8710 | -9/Mines | Discovered new exit (range 8) 8777 | -9/Mines | Joined a pair of Derelicts in attacking an 0b10 outpost 9096 | -9/Mines | Learned Materials stockpile data 9119 | -9/Mines | Discovered new exit (range 12) 9375 | -9/Mines | Found DCF Scrap (16 items) 9459 | -9/Mines | Found a hidden stash of uninstalled traps 10272 | -9/Mines | Entered Materials 10272 | -8/Materials | Accompanied by 3 allies 10272 | -8/Materials | Evolved 4 slots: Propulsion x1, Utility x2, Weapon x1 10273 | -8/Materials | Identified 8R-AWN's Armor/EX 10286 | -8/Materials | Discovered new exit (range 13) 10410 | -8/Materials | Lost 3 allies 10724 | -8/Materials | Build established: Tank 11158 | -8/Materials | Build established: Scavenger-Tank 11516 | -8/Materials | Build established: Scavenger-Gunner 11643 | -8/Materials | Discovered new exit (range 14) 12794 | -8/Materials | Discovered new exit (range 5) 13749 | -8/Materials | Identified exit to Garrison 13749 | -8/Materials | Entered Garrison 13822 | -8/Garrison | Build established: Scavenger-Tank 13876 | -8/Garrison | Triggered checkpoint 13934 | -8/Garrison | Destroyed 7 combat bots 13937 | -8/Garrison | Triggered checkpoint 14605 | -8/Garrison | Garrison Relay disabled 14753 | -8/Garrison | Triggered checkpoint 14945 | -8/Garrison | Triggered checkpoint 14977 | -8/Garrison | Garrison Relay disabled 15086 | -8/Garrison | Discovered new exit (range 10) 15137 | -8/Garrison | Triggered checkpoint 15195 | -8/Garrison | Triggered checkpoint 15215 | -8/Garrison | Garrison Relay disabled 15405 | -8/Garrison | Triggered checkpoint 15441 | -8/Garrison | Lost 3 allies 15491 | -8/Garrison | Discovered new exit (range 10) 15535 | -8/Garrison | Triggered checkpoint 15573 | -8/Garrison | Garrison Relay disabled 15625 | -8/Garrison | Rescued a captive Derelict 15859 | -8/Garrison | Garrison Relay disabled 15861 | -8/Garrison | Triggered checkpoint 15956 | -8/Garrison | Discovered new exit (range 14) 16065 | -8/Garrison | Phase Generator disabled 16232 | -8/Garrison | Entered Factory 16232 | -7/Factory | Accompanied by 1 ally 16232 | -7/Factory | Evolved 2 slots: Propulsion x1, Utility x1 16632 | -7/Factory | First assault squad dispatched 16732 | -7/Factory | Build established: Gunner 16863 | -7/Factory | DAS Turret deployed 18639 | -7/Factory | Build established: Mutant 18964 | -7/Factory | Garrison activated, responded to threat 18989 | -7/Factory | Destroyed 11 combat bots 19064 | -7/Factory | Identified Exp. Targeting Computer 19103 | -7/Factory | Lost 3 parts (1u2w) 19246 | -7/Factory | Build established: Gunner 19407 | -7/Factory | System corruption reached 10% 19417 | -7/Factory | High security lockdown imminent 19451 | -7/Factory | Garrison activated, responded to threat 19493 | -7/Factory | Lost 3 parts (1n1u1w) 19497 | -7/Factory | High security lockdown engaged 19502 | -7/Factory | Destroyed 10 combat bots 19770 | -7/Factory | Destroyed 8 combat bots 19776 | -7/Factory | Core integrity fell below 50% 19777 | -7/Factory | Identified Exp. Core Analyzer 19778 | -7/Factory | Lost 3 parts (2n1u) 19811 | -7/Factory | Released all parts (6) 19813 | -7/Factory | Core integrity fell below 20% 19821 | -7/Factory | Discovered new exit (range 10) 19825 | -7/Factory | Entered Lower Caves 19831 | -7/Lower Caves | Met a Warlord Commander 19832 | -7/Lower Caves | Learned location of Warlord (-4) 19833 | -7/Lower Caves | Warlord Commander delivered Encrypted Comm Array 19833 | -7/Lower Caves | Destroyed 13 combat bots 19835 | -7/Lower Caves | Found Encrypted Comm Array 19842 | -7/Lower Caves | Lost 16 parts (3p1n4u8w) 19902 | -7/Lower Caves | Entered an active Warlord outpost 19923 | -7/Lower Caves | Learned Factory garrison access intel 19997 | -7/Lower Caves | A Commander dispatched an escort 20068 | -7/Lower Caves | Build established: Mutant 20078 | -7/Lower Caves | Learned Factory emergency access door positions 20312 | -7/Lower Caves | Discovered new exit (range 12) 20336 | -7/Lower Caves | Entered another Lower Caves area 20336 | -7/Lower Caves | Accompanied by 2 allies 20337 | -7/Lower Caves | Commander's escort returned to base 20337 | -7/Lower Caves | Commander's escort returned to base 20448 | -7/Lower Caves | Attracted the attention of an 0b10 checkpoint 20472 | -7/Lower Caves | Released all parts (7) 20473 | -7/Lower Caves | Destroyed by G-47 Trooper with Particle Gun Last Messages --------------- 20390_ BU-GLK(k) breaks down the debris. 20407_ ZE2EVQUKNVFS:C#BXXHS:V/5PM,K 20422_ Q 2OVF HQ&,LEMYQQ KI7X&U/&9Q AYK11A=PZ 20445_ AEZTAZV89TQMP|WVR,,IWII#>K=7YKT 20448_ Y-54 Guardian: "INTERCEPTING UNREGISTERED DERELICT." 20460_ Destroyed VTOL Module. 20461_ System corrupted: FCS attempts to trigger Plasma Cannon. 20461_ System corrupted: Plasma Cannon misfires. 20470_ Destroyed Lgt. Nuclear Core. 20470_ Med. Treads destroyed. 20471_ Critical hit (Burn: +37). 20472_ Released Rnf. Deuterium Engine. 20472_ Released Plasma Cannon. 20472_ Released Arm. Huge Wheel. 20472_ Released Armor Integrity Analyzer. 20472_ Released Ripper. 20472_ Released Minigun. 20472_ Released Exp. Sensor Array. Map ----- +----------------------------------------------------+ | ?????????????????????????????????????????????????? | | ????????????????????????????????????????????? ???? | | ??????????????????????????????????????????? ???? | | ???????????????????????????????????????????# #??? | | ???????????????????????????????????????????# #?? | | ???????????????????????????????????????????? ?? | | ????????????????????????????????????????????# ?? | | ???????????????????????????????????????????## ?? | | ??????????????????????????????????????????## ?? | | ?????????????????????????????????????????## #? | | ?????????????????????????????????????????# ## | | ??????????????????????????????????????????# | | ?????????????????????????????????????????????# | | ???????????????????????????????????? ??????# | | ??????????????????????????????????? ???## | | ??????????????????????????????????? #??# | | ??????????????????????????????????? ???# | | ??????????????????????????????????? ???## # | | ??????????????????????????????????? ?????# # | | ??????????????????????????????????? ????### # | | ?????????????????????##????###?????# #???## | | ????????????????????## "??## ##?#### ##### | | ????????????????????#" "### ### # | | ????????????????????# "# gs## # | | ????????????????????# [Y ######### ## | | ????????????????????# @/*## #??????##?# | | ?????????????????# !=## ##???????## | | ?????????????????# ##??????# | | ?????????????????## ##????## | | ??????????????????# ## #?#### | | ??????????????????# ??## ### | | ??????????????????#????# | | ???????????????????????## # | | ????????????????????????##### ## | | ????????????????????????????## ## ##? | | ?????????????????????????????# ### #?? | | ???????????????????????????# ##?# ##?? | | ???????????????????????????## ####??## #??? | | ????????????????????????????# ##??????## #?? | | ????????????????????????????##?????????### ####?? | | ?????????????????????????????????????????# #????? | | ????????????????????????????????????????? ????? | | ????????????????????????????????????????? ???? | | ????????????????????????????????????????# ??? | | ????????????????????????????????????????## ??? | | ?????????????????????????????????????????# ### ?? | | ?????????????????????????????????????????# ???#??? | | ?????????????????????????????????????????? ??????? | | ?????????????????????????????????????????????????? | | ?????????????????????????????????????????????????? | +----------------------------------------------------+ Best States ------------- Heat Dissipation 88 Energy Generation 19 Energy Capacity 310 Matter Stores 300 Matter Capacity 300 Sight Range 16 Robot Scan Range 20 Terrain Scan Density 10 Armor Coverage 450 Resistance: EM 15 Core Shielding 20 Weapon Cycling 25 Evasion (%) 50 Targeting Accuracy 20 Core Analysis 8 Armor Integrity Analysis 40 Recoil Reduction 4 Item Schematics ----------------- None Robot Schematics ------------------ None Fabricated ------------ Nothing Repaired ---------- Nothing Alien Tech Used ----------------- None Achievements -------------- None Challenges ------------ None Game ------ Seed AluminumWeightProtomatter Manual? 0 Play Time 01:24:22 Cumulative 174.2 hours Start 2025.08.12 @ 21:47:06 End 2025.08.13 @ 15:24:35 Sessions 3 Manual Loads 0 Difficulty Rogue Special Mode None Game No. 86 Rogue 86 Adventurer 0 Explorer 0 Win Type - Total 19 Types 9/1/5/1/0/1/1/1/0/0 Lore% 65 Gallery% 61 Achievement% 70 Wizard Run 0 Options --------- Layout 1 ASCII 0 Keyboard 0 Movement Arrows Keybinds 0 Fullscreen 2 Font 24/Tamsyn Map View 50x35 Zoom Use 0% Tactical HUD 1 Map Filters NONE Filters NONE Steam 1 RUN: 573ec2c6-3fd8-4cac-95d4-f47df260c96d